bitfinex/quotes_ETHUSD_20250708
["timestamp","ask_amount","ask_price","bid_price","bid_amount"]
[1751989345678,4.25694898,2568.9,2568.8,0.001]
[1751989346784,4.45134898,2568.9,2568.8,0.001]
[1751989348306,4.45189602,2568.9,2568.8,0.001]
[1751989352586,0.5591793,2568.9,2568.8,0.001]
[1751989352790,4.45189602,2568.9,2568.8,0.001]
[1751989353911,0.5591793,2568.9,2568.8,0.001]
[1751989354120,0.55916874,2568.9,2568.8,0.001]
[1751989354525,0.36476874,2568.9,2568.8,0.001]
[1751989355884,0.36476874,2568.9,2568.8,5.06700022]
[1751989356079,0.36476874,2568.9,2568.8,5.86140022]
[1751989356820,0.36476874,2568.9,2568.8,11.79940022]
[1751989357511,0.36476874,2568.9,2568.8,22.34940022]
[1751989359332,1.40065008,2569.3,2569.2,3.89226218]
[1751989359485,0.3647027,2569.3,2569.2,11.0198884]
[1751989359683,0.3647027,2569.3,2569.2,11.2142884]
[1751989359884,0.36467916,2569.3,2569.2,11.2142884]
[1751989360615,0.36467916,2569.3,2569.2,5.938]
[1751989361115,1.76502094,2569.3,2569.2,5.938]
[1751989361494,0.36467916,2569.3,2569.2,5.938]
[1751989362613,0.36467916,2569.3,2569.2,10.62616218]
[1751989363816,1.40034178,2569.4,2569.2,10.62616218]
[1751989364218,1.40034178,2569.4,2569.2,6.7339]
[1751989364407,1e-08,2569.5,2569.2,6.7339]
[1751989364606,1e-08,2569.5,2569.2,10.62614871]
[1751989364912,1e-08,2569.5,2569.2,11.09225901]
[1751989365797,1e-08,2569.5,2569.2,7.2000103]
[1751989366002,0.36467864,2569.4,2569.2,11.09222423]
[1751989366202,0.36467864,2569.3,2569.2,11.09222423]
[1751989367235,1e-08,2569.5,2569.4,3.89195921]
[1751989367434,0.36451144,2569.5,2569.4,15.76595921]
[1751989368103,0.36451144,2569.5,2569.4,11.874]
[1751989368903,0.36451144,2569.5,2569.4,15.76595921]
[1751989369150,0.36451144,2569.5,2569.4,11.874]
[1751989373228,0.36451144,2569.5,2569.4,15.76595921]
[1751989373407,0.36451144,2569.5,2569.4,11.874]
[1751989375317,1e-08,2569.5,2569.4,11.874]
[1751989376244,1e-08,2569.5,2569.4,15.76595921]
[1751989376446,1e-08,2569.5,2569.4,18.0251959]
[1751989377446,1e-08,2569.5,2569.4,18.8438959]
[1751989378719,1e-08,2569.5,2569.4,35.64092899]
[1751989379252,1e-08,2569.5,2569.4,36.19092899]
[1751989380149,1e-08,2569.5,2569.4,13.62793669]
[1751989380350,1e-08,2569.5,2569.4,22.9048959]
[1751989383069,1e-08,2569.5,2569.4,23.4548959]
[1751989386261,1e-08,2569.5,2569.4,23.4538959]
[1751989391042,1e-08,2569.5,2569.4,17.5198959]
[1751989391252,1e-08,2569.5,2569.4,22.9018959]
[1751989391650,1e-08,2569.5,2569.4,17.5198959]
[1751989391956,1e-08,2569.5,2569.4,22.9018959]
[1751989393264,1e-08,2569.5,2569.4,29.69892899]
[1751989394479,1e-08,2569.5,2569.4,23.76692899]
[1751989394695,1e-08,2569.5,2569.4,0.1944]
[1751989394880,1e-08,2569.5,2569.4,6.1264]
[1751989395461,1e-08,2569.5,2569.4,0.1944]
[1751989395667,3.89180775,2569.5,2569.4,0.1944]
[1751989395869,3.89180775,2569.5,2569.1,10.81372413]
[1751989395870,3.89203577,2569.4,2569.3,0.1944]
[1751989396385,4.4157671,2569.5,2569.3,6.1264]
[1751989397893,1e-08,2569.5,2569.3,6.1264]
[1751989398395,3.89182008,2569.5,2569.3,6.1264]
[1751989399091,1e-08,2569.5,2569.3,6.1264]
[1751989400589,3.89184665,2569.5,2569.3,6.1264]
[1751989400772,3.89188749,2569.5,2569.4,5.932]
[1751989401089,1e-08,2569.5,2569.4,5.932]
[1751989402894,0.3643079,2569.5,2569.4,5.932]
[1751989403918,4.25611564,2569.5,2569.4,5.932]
[1751989404621,0.3643079,2569.5,2569.4,5.932]
[1751989405718,4.25611564,2569.5,2569.4,5.932]
[1751989406730,0.3643079,2569.5,2569.4,5.932]
[1751989408017,4.25612355,2569.5,2569.3,0.1954]
[1751989408315,3.89181566,2569.5,2569.4,5.932]
[1751989408507,4.25610831,2569.5,2569.4,5.932]
[1751989409103,0.36429266,2569.5,2569.4,5.932]
[1751989409735,0.36429266,2569.5,2569.3,0.1954]
[1751989409736,4.2561004,2569.5,2569.3,0.1954]
[1751989410026,4.78015186,2569.4,2569.3,0.001]
[1751989410415,6.17857431,2569.4,2569.3,0.001]
[1751989410788,4.78015186,2569.4,2569.3,0.001]
[1751989412108,0.36429265,2569.4,2569.3,0.001]
[1751989413291,1e-08,2569.5,2569.3,0.001]
[1751989413497,0.36407457,2569.5,2569.3,0.001]
[1751989414099,0.36407456,2569.4,2569.3,0.001]
[1751989414325,4.25603377,2569.4,2569.3,5.932]
[1751989414695,0.36407456,2569.4,2569.3,5.932]
[1751989415097,4.25603377,2569.4,2569.3,5.932]
[1751989415397,4.25598069,2569.4,2569.3,5.932]
[1751989416028,4.25598496,2569.4,2569.3,5.932]
[1751989416226,0.36402575,2569.4,2569.3,5.932]
[1751989416821,4.25598496,2569.4,2569.3,5.932]
[1751989418326,4.25598496,2569.4,2569.3,0.001]
[1751989419318,4.77988496,2569.4,2569.3,0.001]
[1751989419630,6.17778875,2569.4,2569.3,0.001]
[1751989420428,5.813763,2569.4,2569.3,0.001]
[1751989420599,6.1779098,2569.4,2569.3,0.001]
[1751989421321,12.10890635,2569.4,2569.3,0.001]
[1751989422614,12.4499983,2569.4,2569.3,0.001]
[1751989423935,12.44998439,2569.4,2569.3,0.001]
[1751989424819,12.45003432,2569.4,2569.3,0.001]
[1751989425013,12.45003432,2569.4,2569.1,0.001]
[1751989425237,11.21319527,2569.2,2569.1,0.001]
[1751989425437,19.24737579,2569.2,2569.1,0.001]
[1751989425743,19.24735568,2569.2,2569.1,0.001]
[1751989426126,6.17820405,2569.2,2569.1,0.001]
[1751989426435,1.76204187,2569.2,2569.1,0.001]
[1751989426626,0.36415199,2569.2,2569.1,0.001]
[1751989427812,0.36406137,2569.2,2569.1,0.001]
[1751989429119,4.25632355,2569.2,2569.1,0.001]
[1751989436547,0.36406137,2569.2,2569.1,0.8077]
[1751989436847,0.36406137,2569.2,2569.1,1.0021]
[1751989438743,0.36406137,2569.2,2569.1,4.89451368]
[1751989439817,0.36453655,2569.2,2569.1,4.89451368]
[1751989441256,0.36453196,2569.2,2569.1,4.89451368]
[1751989441574,1e-08,2569.5,2569.2,3.89225748]
[1751989441760,0.3645303,2569.4,2569.2,3.89225748]
[1751989441932,0.3645303,2569.3,2569.2,3.89225748]
[1751989442332,0.3645303,2569.3,2569.1,4.89443293]
[1751989442568,1e-08,2569.5,2569.1,4.89443293]
[1751989442770,0.36452157,2569.4,2569.1,4.89443293]
[1751989443068,0.36452157,2569.3,2569.1,4.89443293]
[1751989443229,3.89180928,2569.5,2569.1,1.0021]
[1751989443434,0.36455336,2569.4,2569.1,1.0021]
[1751989443734,0.36455336,2569.3,2569.1,4.89451274]
[1751989443953,3.89226218,2569.2,2569.1,0.1954]
[1751989444171,3.89217973,2569.3,2569.1,0.001]
[1751989444330,0.36455754,2569.2,2569.1,0.001]
[1751989444934,3.89218209,2569.3,2569.1,0.001]
[1751989445462,0.36455475,2569.2,2569.1,0.001]
[1751989445858,0.72913812,2569.2,2568.9,4.11114667]
[1751989446042,0.36456905,2569.1,2568.9,3.64353455]
[1751989447373,0.36456905,2569.1,2568.8,5.93]
[1751989447374,4.25719908,2569.0,2568.8,5.93]
[1751989447554,4.25719908,2569.0,2568.8,0.001]
[1751989447555,4.25728577,2568.9,2568.8,0.001]
[1751989448056,0.36456905,2568.9,2568.8,0.001]
[1751989448871,4.66143198,2569.2,2568.8,0.001]
[1751989449044,4.25710919,2569.1,2568.8,0.001]
[1751989449240,3.89271672,2568.9,2568.8,0.001]
[1751989449445,4.25740302,2568.9,2568.8,0.001]
[1751989449672,0.7691,2569.2,2568.8,0.001]
[1751989449673,3.89264311,2569.0,2568.8,0.001]
[1751989450178,3.89245084,2569.1,2568.9,0.36452412]
[1751989450364,3.89266728,2569.0,2568.8,0.001]
[1751989450546,3.89266728,2569.0,2568.9,0.36453742]
[1751989451071,3.89271672,2568.9,2568.8,0.001]
[1751989451274,3.89271672,2568.9,2568.8,0.36555224]
[1751989451939,3.89271672,2568.9,2568.8,0.73012828]
[1751989454757,3.89271672,2568.9,2568.8,0.73012648]
[1751989455647,3.89271672,2568.9,2568.8,0.73019453]
[1751989456173,13.89271672,2568.9,2568.8,0.73019453]
[1751989456382,3.89271672,2568.9,2568.8,0.73019453]
[1751989457979,4.08711672,2568.9,2568.8,0.73019453]
[1751989459260,14.08711672,2568.9,2568.8,0.73019453]
[1751989460276,20.01611672,2568.9,2568.8,0.73019453]
[1751989460644,20.01611672,2568.9,2568.8,0.73008005]
[1751989463660,10.01611672,2568.9,2568.8,0.73008005]
[1751989463860,4.08711672,2568.9,2568.8,0.72995704]
[1751989464060,10.01611672,2568.9,2568.8,0.72995704]
[1751989465185,20.01611672,2568.9,2568.8,0.72995704]
[1751989465685,14.08711672,2568.9,2568.8,0.36552961]
[1751989465872,20.01611672,2568.9,2568.8,0.36552961]
[1751989466476,20.01611672,2568.9,2568.8,0.001]
[1751989466672,14.08711672,2568.9,2568.8,0.001]
[1751989466983,20.01511672,2568.9,2568.8,0.001]
[1751989467183,20.61281672,2568.9,2568.8,0.001]
[1751989469763,14.68481672,2568.9,2568.8,0.001]
[1751989469969,20.61281672,2568.9,2568.8,0.001]
[1751989471756,14.68481672,2568.9,2568.8,0.001]
[1751989471955,20.61281672,2568.9,2568.8,0.001]
[1751989479302,13.89377774,2568.2,2568.1,0.001]
[1751989479617,19.82177774,2568.2,2568.1,0.001]
[1751989481110,14.08817774,2568.2,2568.1,0.001]
[1751989481322,20.01617774,2568.2,2568.1,0.001]
[1751989481619,14.08817774,2568.2,2568.1,0.001]
[1751989481831,10.1944,2568.2,2568.1,0.001]
[1751989482177,10.1944,2568.2,2568.1,0.36504024]
[1751989482374,5.928,2568.2,2568.1,0.36504024]
[1751989482611,5.928,2568.3,2568.2,0.7777]
[1751989482811,5.928,2568.3,2568.2,1.14174024]
[1751989483115,6.29206156,2568.3,2568.2,0.7777]
[1751989484404,10.18568769,2568.3,2568.1,0.001]
[1751989484706,4.2578393,2568.2,2568.1,0.001]
[1751989485073,4.25788584,2568.2,2568.1,0.001]
[1751989485600,4.6220203,2568.2,2568.1,0.001]
[1751989486819,6.65624256,2568.2,2568.1,0.001]
[1751989487186,10.5500203,2568.2,2568.1,0.001]
[1751989488201,6.65624256,2568.2,2568.1,0.001]
[1751989488725,0.72824256,2568.2,2568.1,4.69602936]
[1751989488924,0.36413446,2568.2,2568.1,6.47207019]
[1751989489608,0.36413446,2568.2,2568.1,2.57814083]
[1751989489843,0.36413446,2568.2,2568.1,6.4331309]
[1751989490122,0.36413446,2568.2,2568.1,0.8021]
[1751989490319,4.2579122,2568.2,2568.1,1.3021]
[1751989490626,0.36413446,2568.2,2568.1,1.3021]
[1751989490820,4.2579122,2568.2,2568.1,0.501]
[1751989491521,0.72851118,2568.2,2568.1,0.501]
[1751989492024,4.62228892,2568.2,2568.1,0.501]
[1751989492798,4.62228892,2568.2,2568.1,0.001]
[1751989493124,4.81668892,2568.2,2568.1,0.001]
[1751989493725,4.81679759,2568.2,2568.1,0.001]
[1751989495100,10.74479759,2568.2,2568.1,0.001]
[1751989498314,10.74479759,2568.2,2568.0,0.001]
[1751989498514,4.6227429,2568.1,2568.0,0.001]
[1751989500732,0.72881354,2568.1,2568.0,0.001]
[1751989500931,0.36413446,2568.1,2568.0,0.001]
[1751989501104,0.36413446,2568.1,2568.0,3.89508099]
[1751989501298,0.36413446,2568.1,2568.0,4.93160532]
[1751989501737,0.36413446,2568.1,2568.0,1.03752433]
[1751989502333,0.36413446,2568.1,2568.0,0.001]
[1751989504012,0.36413446,2568.1,2568.0,3.89508099]
[1751989504245,0.36413446,2568.1,2568.0,0.001]
[1751989506638,0.36413446,2568.1,2568.0,0.501]
[1751989508018,4.25806382,2568.1,2568.0,0.501]
[1751989508223,0.36413446,2568.1,2568.0,0.501]
[1751989508424,4.25806382,2568.1,2568.0,0.501]
[1751989508815,0.36413446,2568.1,2568.0,0.501]
[1751989509012,14.25806382,2568.1,2568.0,0.501]
[1751989509222,21.55493086,2568.1,2568.0,0.12083985]
[1751989509544,21.55493086,2568.1,2567.7,0.001]
[1751989509545,3.89438429,2567.8,2567.7,0.001]
[1751989509751,4.25929264,2567.8,2567.7,0.001]
[1751989510445,5.03959264,2567.8,2567.7,0.001]
[1751989511030,15.03959264,2567.8,2567.7,0.001]
[1751989511954,15.40450714,2567.8,2567.7,0.001]
[1751989512324,22.20131377,2567.8,2567.7,0.001]
[1751989512626,21.05621563,2567.8,2567.7,0.001]
[1751989512843,21.84101563,2567.8,2567.7,0.001]
[1751989513424,3.89529448,2567.2,2567.1,0.001]
[1751989513640,4.26009273,2567.2,2567.1,0.001]
[1751989516663,14.26009273,2567.2,2567.1,0.001]
[1751989518966,15.03599273,2567.2,2567.1,0.001]
[1751989520440,21.83302582,2567.2,2567.1,0.001]
[1751989521662,14.08984622,2567.1,2567.0,0.001]
[1751989521830,20.38264447,2567.1,2567.0,0.001]
[1751989525669,21.18954447,2567.1,2567.0,0.001]
[1751989528769,15.26154447,2567.1,2567.0,0.001]
[1751989529072,21.19054447,2567.1,2567.0,0.001]
[1751989531139,13.89559797,2567.0,2566.9,0.001]
[1751989531345,21.83832931,2567.0,2566.9,0.001]
[1751989533856,20.97029622,2567.0,2566.9,0.001]
[1751989535547,4.26039622,2567.0,2566.9,0.001]
[1751989535748,0.36479825,2567.0,2566.9,0.001]
[1751989536094,0.36479825,2567.0,2566.9,4.89550722]
[1751989536251,0.36479825,2567.0,2566.9,4.85654973]
[1751989536451,0.36479825,2567.0,2566.9,6.41159507]
[1751989538007,0.816,2568.4,2567.0,0.55]
[1751989538169,0.36326876,2567.6,2567.5,10.69187199]
[1751989538678,0.36326876,2567.6,2567.5,11.65607199]
[1751989540687,0.36326876,2567.6,2567.5,4.8590389]
[1751989540887,0.36326876,2567.6,2567.5,6.41415424]
[1751989541189,0.36326876,2567.6,2567.5,2.51931534]
[1751989541374,3.89423567,2567.9,2567.5,2.51931534]
[1751989541553,4.08853869,2568.0,2567.5,6.41413909]
[1751989541759,0.36347836,2567.6,2567.5,6.41413909]
[1751989542256,4.08853869,2568.0,2567.5,6.41413909]
[1751989544302,4.08853869,2568.0,2567.6,3.89468764]
[1751989544501,0.36518282,2567.7,2567.6,3.89468764]
[1751989545002,0.002,2567.7,2567.6,5.6789866]
[1751989545493,0.002,2567.7,2567.6,5.71793347]
[1751989546060,0.002,2567.7,2567.6,1.82324583]
[1751989546285,0.002,2567.7,2567.6,5.71793347]
[1751989547986,0.002,2567.7,2567.6,5.6789866]
[1751989548192,0.002,2567.7,2567.6,1.78429896]
[1751989548392,0.002,2567.7,2567.6,0.7534]
[1751989550572,0.002,2567.7,2567.6,4.64808764]
[1751989550774,0.002,2567.7,2567.6,4.68703451]
[1751989559273,0.002,2567.7,2567.6,4.64808764]
[1751989561298,0.002,2567.7,2567.6,4.68703451]
[1751989561497,0.002,2567.7,2567.6,4.64808764]
[1751989561689,0.002,2567.7,2567.6,4.68703451]
[1751989561889,0.002,2567.7,2567.6,6.83696398]
[1751989565181,0.36619386,2567.7,2567.6,6.83696398]
[1751989565583,0.36619386,2567.7,2567.6,5.72872298]
[1751989565784,0.36620699,2567.7,2567.6,5.72872298]
[1751989566514,0.36620699,2567.7,2567.6,5.68977611]
[1751989567212,0.36620699,2567.7,2567.6,5.72872298]
[1751989567382,0.36620699,2567.7,2567.6,11.65372298]
[1751989567581,0.36620699,2567.7,2567.6,11.61477611]
[1751989568321,0.36620699,2567.7,2567.6,5.925]
[1751989568491,0.36709918,2567.7,2567.6,9.81968764]
[1751989568686,0.36709918,2567.7,2567.6,5.925]
[1751989568887,0.36709918,2567.7,2567.5,4.08918592]
[1751989569120,0.36509918,2567.6,2567.5,4.08918592]
[1751989569296,0.36509918,2567.6,2567.5,10.01418592]
[1751989569619,0.36509918,2567.6,2567.5,4.08918592]
[1751989569782,0.36509918,2567.6,2567.5,10.01418592]
[1751989572199,0.36509918,2567.6,2567.5,4.08918592]
[1751989572393,0.36509918,2567.6,2567.5,10.01318592]
[1751989572788,0.36509918,2567.6,2567.5,0.1944]
[1751989573003,0.36509918,2567.6,2567.5,6.1184]
[1751989573314,0.36509918,2567.6,2567.5,10.01323933]
[1751989573827,0.36509918,2567.6,2567.5,13.96317356]
[1751989573981,0.36509918,2567.6,2567.5,19.88717356]
[1751989579623,0.36509918,2567.6,2567.5,22.76800726]
[1751989580135,0.002,2567.7,2567.6,4.44468764]
[1751989580293,0.36723166,2567.7,2567.6,5.24038764]
[1751989580488,0.36723166,2567.7,2567.6,10.97893303]
[1751989581994,0.36723166,2567.7,2567.6,10.42893303]
[1751989582341,0.36723166,2567.7,2567.6,9.81868764]
[1751989582542,0.36723166,2567.7,2567.6,3.89468764]
[1751989582746,0.36723166,2567.7,2567.6,5.923]
[1751989582891,0.36723166,2567.7,2567.6,9.81768764]
[1751989583232,0.36723166,2567.7,2567.6,10.56858764]
[1751989583520,0.36723166,2567.7,2567.6,9.81768764]
[1751989583907,0.36723166,2567.7,2567.6,3.89468764]
[1751989584120,0.36723166,2567.7,2567.6,9.81768764]
[1751989584915,0.36723166,2567.7,2567.6,16.61472073]
[1751989585118,0.36723166,2567.7,2567.6,18.9932901]
[1751989585427,0.36723166,2567.7,2567.6,21.3241238]
[1751989585632,0.36714735,2567.7,2567.6,22.0750238]
[1751989586534,0.002,2567.7,2567.6,22.0750238]
[1751989586910,0.002,2567.7,2567.6,32.6250238]
[1751989587145,0.002,2567.7,2567.6,30.2941901]
[1751989588203,0.002,2567.7,2567.6,32.62962673]
[1751989589801,0.002,2567.7,2567.6,30.2941901]
[1751989591258,1e-08,2567.7,2567.6,30.2941901]
[1751989591608,1e-08,2567.7,2567.6,33.79130683]
[1751989591812,1e-08,2567.7,2567.6,30.2941901]
[1751989592014,1e-08,2567.7,2567.6,33.79130683]
[1751989593435,1e-08,2567.7,2567.6,30.2941901]
[1751989594218,1e-08,2567.7,2567.6,33.79479453]
[1751989594528,1e-08,2567.7,2567.6,30.2941901]
[1751989595147,1e-08,2567.7,2567.6,33.7941458]
[1751989595868,1e-08,2567.7,2567.6,30.2941901]
[1751989600932,1e-08,2567.7,2567.6,34.9941901]
[1751989602757,1e-08,2567.7,2567.6,48.77811322]
[1751989603056,1e-08,2567.7,2567.6,43.72150322]
[1751989603763,1e-08,2567.7,2567.6,29.0711901]
[1751989603966,1e-08,2567.7,2567.6,34.9921901]
[1751989604472,1e-08,2567.7,2567.6,29.0711901]
[1751989604653,1e-08,2567.7,2567.6,34.9921901]
[1751989606486,1e-08,2567.7,2567.6,39.64900422]
[1751989606857,1e-08,2567.7,2567.6,68.75075922]
[1751989607172,0.8205,2568.8,2568.7,10.6900529]
[1751989607465,0.8205,2568.8,2568.7,16.6110529]
[1751989607669,0.8205,2568.8,2568.7,16.8054529]
[1751989608172,0.8205,2568.8,2568.7,10.00841981]
[1751989608368,0.8205,2568.8,2568.7,6.1154]
[1751989610174,0.8205,2568.8,2568.7,6.1144]
[1751989611065,0.8205,2568.8,2568.7,10.00741981]
[1751989617576,0.002,2568.8,2568.7,10.00741981]
[1751989620287,0.002,2568.8,2568.7,12.22136153]
[1751989621771,0.002,2568.8,2568.7,22.22136153]
[1751989624563,0.002,2569.0,2568.9,22.02384981]
[1751989624775,0.002,2569.0,2568.9,28.13724981]
[1751989626283,0.002,2569.0,2568.9,30.46909109]
[1751989626489,0.002,2569.0,2568.9,21.60195048]
[1751989626667,0.002,2569.0,2568.9,31.98614229]
[1751989626668,1e-08,2569.0,2568.9,31.98614229]
[1751989626987,1e-08,2569.0,2568.9,35.47953309]
[1751989627500,1e-08,2569.0,2568.9,31.98614229]
[1751989627990,1e-08,2569.0,2568.9,26.06714229]
[1751989628291,1e-08,2569.0,2568.9,31.98514229]
[1751989628584,1e-08,2569.0,2568.9,34.315035]
[1751989628803,1e-08,2569.0,2568.9,34.31504082]
[1751989628983,1e-08,2569.0,2568.9,31.98514229]
[1751989629179,1e-08,2569.0,2568.9,26.06714229]
[1751989629389,1e-08,2569.0,2568.9,31.98514229]
[1751989630871,1e-08,2569.0,2568.9,27.06225008]
[1751989631072,1e-08,2569.0,2568.9,20.65104229]
[1751989631293,1e-08,2569.0,2568.9,23.53025008]
[1751989631996,1e-08,2569.0,2568.9,24.36225008]
[1751989632209,1e-08,2569.0,2568.9,34.36225008]
[1751989632410,1e-08,2569.0,2568.9,35.52643309]
[1751989632708,1e-08,2569.0,2568.9,32.03304229]
[1751989632878,1e-08,2569.0,2568.9,36.73304229]
[1751989634310,1e-08,2569.0,2568.9,46.08304229]
[1751989635034,1e-08,2569.0,2568.9,76.79026841]
[1751989635613,1e-08,2569.0,2568.9,66.80939441]
[1751989635801,1e-08,2569.0,2568.9,58.48733029]
[1751989635980,0.0702728,2569.8,2569.7,5.22410484]
[1751989636180,0.0702728,2569.8,2569.7,19.08402614]
[1751989636402,0.0702728,2569.8,2569.7,29.0451111]
[1751989636711,0.0702728,2569.8,2569.7,31.36921793]
[1751989637010,0.0702728,2569.8,2569.7,31.65772103]
[1751989637405,0.0702728,2569.8,2569.7,29.3336142]
[1751989638684,1e-08,2569.8,2569.7,29.3336142]
[1751989639087,1e-08,2569.8,2569.7,31.65772103]
[1751989640099,0.00200001,2569.8,2569.7,31.65772103]
[1751989640410,0.00200001,2569.8,2569.7,29.3336142]
[1751989641496,0.00200001,2569.8,2569.7,31.65772103]
[1751989644191,0.00200001,2569.8,2569.7,25.73972103]
[1751989644393,0.00200001,2569.8,2569.7,29.3316142]
[1751989644803,0.00200001,2569.8,2569.7,28.5490142]
[1751989645116,0.00200001,2569.8,2569.7,20.91347801]
[1751989645339,0.79020001,2569.8,2569.7,4.08590484]
[1751989645693,0.79020001,2569.8,2569.7,10.00090484]
[1751989646633,0.79020001,2569.8,2569.7,4.08590484]
[1751989646831,0.79020001,2569.8,2569.7,10.03981988]
[1751989647035,0.79020001,2569.8,2569.7,4.08590484]
[1751989647333,0.79020001,2569.8,2569.7,10.00090484]
[1751989648389,0.79020001,2569.8,2569.7,0.1944]
[1751989648613,3.89158669,2569.7,2569.5,0.001]
[1751989648828,4.71958349,2569.7,2569.6,5.915]
[1751989649026,4.71965628,2569.6,2569.5,0.001]
[1751989649325,4.71965628,2569.6,2569.5,5.916]
[1751989649326,0.828,2569.6,2569.5,5.916]
[1751989652755,0.828,2569.6,2569.5,9.80780774]
[1751989652950,0.828,2569.6,2569.5,5.916]
[1751989653116,0.828,2569.6,2569.5,6.1104]
[1751989658346,0.828,2569.6,2569.5,0.1954]
[1751989658547,0.828,2569.6,2569.5,6.1114]
[1751989659946,0.828,2569.6,2569.5,10.00320774]
[1751989660719,0.828,2569.6,2569.5,6.1114]
[1751989661747,0.828,2569.6,2569.5,0.1954]
[1751989661962,0.828,2569.6,2569.5,10.00320774]
[1751989662458,0.828,2569.6,2569.5,6.1114]
[1751989668757,0.828,2569.6,2569.5,0.1954]
[1751989668946,0.828,2569.6,2569.5,6.1114]
[1751989669143,0.828,2569.6,2569.5,10.00320774]
[1751989669347,0.00200001,2569.8,2569.5,6.1114]
[1751989669548,0.00200001,2569.8,2569.5,10.00314602]
[1751989670355,3.89336958,2569.8,2569.5,0.1954]
[1751989670552,3.89336958,2569.8,2569.6,5.916]
[1751989670858,0.00200001,2569.8,2569.6,5.916]
[1751989671160,3.89348424,2569.8,2569.6,5.916]
[1751989671362,3.89163642,2569.7,2569.5,0.1954]
[1751989671555,0.7528,2569.6,2569.5,0.001]
[1751989671727,0.7528,2569.6,2569.5,5.917]
[1751989672436,0.7528,2569.6,2569.5,9.80880774]
[1751989672632,0.7528,2569.6,2569.5,5.917]
[1751989673447,0.7528,2569.6,2569.5,9.80880774]
[1751989675363,0.7528,2569.6,2569.5,5.917]
[1751989676567,0.7528,2569.6,2569.5,9.80880774]
[1751989677866,0.7528,2569.6,2569.5,5.917]
[1751989679368,0.7528,2569.6,2569.5,9.80880774]
[1751989679979,0.7528,2569.6,2569.5,5.917]
[1751989682349,4.64445628,2569.6,2569.5,0.001]
[1751989682549,4.64355628,2569.6,2569.5,0.001]
[1751989685279,0.7519,2569.6,2569.5,0.001]
[1751989688352,4.64355628,2569.6,2569.5,0.001]
[1751989690683,20.55855628,2569.6,2569.5,1e-08]
[1751989691042,29.84958323,2569.6,2569.5,1e-08]
[1751989692155,33.95358323,2569.6,2569.5,1e-08]
[1751989692382,29.84958323,2569.6,2569.5,1e-08]
[1751989696082,23.93458323,2569.6,2569.5,1e-08]
[1751989696290,29.84958323,2569.6,2569.5,1e-08]
[1751989696491,6.04458323,2569.6,2569.5,1e-08]
[1751989696653,10.00205628,2569.6,2569.5,1e-08]
[1751989697053,4.08605628,2569.6,2569.5,1e-08]
[1751989697353,0.1944,2569.6,2569.5,1e-08]
[1751989697686,4.08605628,2569.6,2569.5,1e-08]
[1751989700963,0.1944,2569.6,2569.5,1e-08]
[1751989702790,0.1944,2569.6,2569.5,4.33101231]
[1751989703569,0.1944,2569.6,2569.5,0.43920457]
[1751989703868,0.1964,2569.6,2569.5,1e-08]
[1751989704270,0.1964,2569.6,2569.5,3.89180775]
[1751989705293,0.002,2569.6,2569.5,3.89180775]
[1751989705486,0.002,2569.6,2569.5,4.08620775]
[1751989709004,0.002,2569.6,2569.5,0.19440001]
[1751989709175,0.002,2569.6,2569.5,1e-08]
[1751989711605,3.89365628,2569.6,2569.5,1e-08]
[1751989711904,0.002,2569.6,2569.5,1e-08]
[1751989713405,10.57985628,2569.6,2569.5,1e-08]
[1751989713581,20.57985628,2569.6,2569.5,1e-08]
[1751989714570,29.86764704,2569.6,2569.5,1e-08]
[1751989717617,10.06199076,2569.6,2569.5,1e-08]
[1751989717800,1.59419076,2569.6,2569.5,1e-08]
[1751989718001,0.002,2569.6,2569.5,1e-08]
[1751989718579,0.002,2569.6,2569.5,3.89180775]
[1751989718780,0.002,2569.6,2569.5,4.39180775]
[1751989719204,0.002,2569.6,2569.5,0.50000001]
[1751989719401,0.002,2569.6,2569.5,4.39180775]
[1751989719579,0.002,2569.6,2569.5,5.40370775]
[1751989720611,0.002,2569.6,2569.5,6.37218957]
[1751989722408,0.002,2569.6,2569.5,6.3332715]
[1751989722912,0.002,2569.6,2569.5,6.37218957]
[1751989723479,0.002,2569.6,2569.5,6.3332715]
[1751989724182,0.002,2569.6,2569.5,6.37218957]
[1751989726004,0.002,2569.6,2569.5,6.3332715]
[1751989726809,0.002,2569.6,2569.5,0.69440001]
[1751989727009,3.89365628,2569.6,2569.5,0.50000001]
[1751989727209,0.002,2569.6,2569.5,0.50000001]
[1751989727388,3.89365628,2569.6,2569.5,0.50000001]
[1751989727983,0.002,2569.6,2569.5,0.50000001]
[1751989729101,0.002,2569.6,2569.5,1e-08]
[1751989730893,0.002,2569.6,2569.5,0.50000001]
[1751989732016,0.002,2569.6,2569.5,4.39180775]
[1751989732218,0.002,2569.6,2569.5,0.50000001]
[1751989732820,0.002,2569.6,2569.5,1e-08]
[1751989734407,14.69995628,2569.6,2569.5,1e-08]
[1751989734724,23.13995628,2569.6,2569.5,1e-08]
[1751989735137,24.53858949,2569.6,2569.5,1e-08]
[1751989735321,23.13995628,2569.6,2569.5,1e-08]
[1751989735523,24.53847342,2569.6,2569.5,1e-08]
[1751989735825,30.45147342,2569.6,2569.5,1e-08]
[1751989737206,41.05758121,2569.6,2569.5,1e-08]
[1751989740927,35.14458121,2569.6,2569.5,1e-08]
[1751989741128,8.6983,2569.6,2569.5,1e-08]
[1751989741333,7.892,2569.6,2569.5,1e-08]
[1751989741531,8.0864,2569.6,2569.5,1e-08]
[1751989745736,0.1964,2569.6,2569.5,1e-08]
[1751989749631,0.1964,2569.6,2569.5,3.89180775]
[1751989749837,0.1964,2569.6,2569.5,0.77837449]
[1751989750330,0.1964,2569.6,2569.5,1e-08]
[1751989750731,0.1964,2569.6,2569.5,3.89180775]
[1751989751036,0.002,2569.6,2569.5,1e-08]
[1751989751235,0.002,2569.6,2569.5,3.89180775]
[1751989751439,0.002,2569.6,2569.5,4.92602582]
[1751989751654,0.002,2569.6,2569.5,5.76890382]
[1751989752531,0.002,2569.6,2569.5,5.80782189]